fUST/lending_fUST_20260505
["ID","MTS","AMOUNT","RATE_DAILY","PERIOD"]
[421618687,1777977032000,-540.66911656,0.00010309,2]
[421618689,1777977032000,-269.16722476,0.00010309,2]
[421618672,1777977032000,-1200.0,9.372e-05,2]
[421618777,1777977038000,-300.0,0.00010576,2]
[421618781,1777977038000,-300.0,0.00010576,2]
[421618780,1777977038000,-300.0,0.00010576,2]
[421618782,1777977038000,-300.0,0.00010576,2]
[421618784,1777977038000,-1964.0,0.0001134,2]
[421618779,1777977038000,-300.0,0.00010576,2]
[421618786,1777977038000,-439.25032125,0.00011469,2]
[421618787,1777977038000,-537.6845,0.00011584,2]
[421618789,1777977038000,-578.20924308,0.00011694,2]
[421618783,1777977038000,-300.0,0.00010576,2]
[421618778,1777977038000,-300.0,0.00010576,2]
[421618773,1777977038000,-300.0,0.00010576,2]
[421618772,1777977038000,-300.0,0.00010576,2]
[421618770,1777977038000,-300.0,0.00010576,2]
[421618771,1777977038000,-300.0,0.00010576,2]
[421618775,1777977038000,-300.0,0.00010576,2]
[421618774,1777977038000,-300.0,0.00010576,2]
[421618769,1777977038000,-300.0,0.00010576,2]
[421618768,1777977038000,-152.0,0.00010432,2]
[421618785,1777977038000,-180.0,0.0001134,2]
[421618767,1777977038000,-150.83277524,0.00010309,2]
[421618766,1777977038000,-5000.0,8.912e-05,2]
[421618776,1777977038000,-300.0,0.00010576,2]
[421618788,1777977038000,-557.5788265,0.00011639,2]
[421618810,1777977038000,-160.0,0.00011978,2]
[421618790,1777977038000,-153.64631427,0.00011726,2]
[421618792,1777977038000,-151.5,0.00011752,2]
[421618813,1777977038000,-151.0,0.00012,2]
[421618814,1777977038000,-151.0,0.00012,2]
[421618812,1777977038000,-160.0,0.00011997,2]
[421618811,1777977038000,-160.0,0.00011978,2]
[421618809,1777977038000,-157.37628278,0.00011925,2]
[421618807,1777977038000,-445.202766,0.00011925,2]
[421618806,1777977038000,-291.2970718,0.00011925,2]
[421618803,1777977038000,-1223.405542,0.000119,2]
[421618801,1777977038000,-245.81818866,0.000119,2]
[421618795,1777977038000,-151.5,0.00011752,2]
[421618808,1777977038000,-537.6845,0.00011925,2]
[421618802,1777977038000,-258.71184745,0.000119,2]
[421618796,1777977038000,-183.12712014,0.00011752,2]
[421618800,1777977038000,-186.38045905,0.000119,2]
[421618799,1777977038000,-161.56332863,0.00011872,2]
[421618797,1777977038000,-621.78829552,0.00011804,2]
[421618793,1777977038000,-151.5,0.00011752,2]
[421618804,1777977038000,-296.10755969,0.00011914,2]
[421618805,1777977038000,-162.380719,0.00011925,2]
[421618794,1777977038000,-151.5,0.00011752,2]
[421618798,1777977038000,-644.79446246,0.00011859,2]
[421618791,1777977038000,-599.60298507,0.00011749,2]
[421618822,1777977039000,-2214.0,0.00012152,2]
[421618828,1777977039000,-156.31876007,0.00012327,2]
[421618824,1777977039000,-443.353,0.00012152,2]
[421618826,1777977039000,-172.109,0.00012205,2]
[421618836,1777977039000,-500.0,0.00012327,2]
[421618834,1777977039000,-500.0,0.00012327,2]
[421618835,1777977039000,-500.0,0.00012327,2]
[421618844,1777977039000,-266.45513456,0.00012327,2]
[421618827,1777977039000,-600.0,0.00012239,2]
[421618833,1777977039000,-500.0,0.00012327,2]
[421618829,1777977039000,-500.0,0.00012327,2]
[421618818,1777977039000,-151.0,0.00012,2]
[421618823,1777977039000,-185.0,0.00012152,2]
[421618831,1777977039000,-500.0,0.00012327,2]
[421618830,1777977039000,-525.07919313,0.00012327,2]
[421618819,1777977039000,-151.0,0.00012,2]
[421618821,1777977039000,-646.0,0.00012152,2]
[421618832,1777977039000,-500.0,0.00012327,2]
[421618820,1777977039000,-1408.0,0.00012152,2]
[421618816,1777977039000,-151.0,0.00012,2]
[421618815,1777977039000,-151.0,0.00012,2]
[421618817,1777977039000,-151.0,0.00012,2]
[421618838,1777977039000,-483.27106793,0.00012327,2]
[421618825,1777977039000,-793.0,0.000122,2]
[421618837,1777977039000,-500.0,0.00012327,2]
[421618862,1777977039000,-500.0,0.00012327,2]
[421618842,1777977039000,-492.22915331,0.00012327,2]
[421618840,1777977039000,-6.94751962,0.00012327,2]
[421618864,1777977039000,-500.0,0.00012327,2]
[421618865,1777977039000,-457.13533092,0.00012327,2]
[421618863,1777977039000,-522.42235508,0.00012327,2]
[421618859,1777977039000,-500.0,0.00012327,2]
[421618861,1777977039000,-500.0,0.00012327,2]
[421618860,1777977039000,-500.0,0.00012327,2]
[421618855,1777977039000,-500.0,0.00012327,2]
[421618851,1777977039000,-522.47923601,0.00012327,2]
[421618850,1777977039000,-500.0,0.00012327,2]
[421618854,1777977039000,-500.0,0.00012327,2]
[421618852,1777977039000,-500.0,0.00012327,2]
[421618849,1777977039000,-500.0,0.00012327,2]
[421618841,1777977039000,-493.05248038,0.00012327,2]
[421618853,1777977039000,-500.0,0.00012327,2]
[421618843,1777977039000,-500.0,0.00012327,2]
[421618846,1777977039000,-500.0,0.00012327,2]
[421618857,1777977039000,-500.0,0.00012327,2]
[421618839,1777977039000,-500.0,0.00012327,2]
[421618848,1777977039000,-500.0,0.00012327,2]
[421618858,1777977039000,-500.0,0.00012327,2]
[421618847,1777977039000,-500.0,0.00012327,2]
[421618845,1777977039000,-233.54486544,0.00012327,2]
[421618856,1777977039000,-500.0,0.00012327,2]
[421618881,1777977040000,-500.0,0.00012328,2]
[421618873,1777977040000,-500.0,0.00012327,2]
[421618872,1777977040000,-42.86466908,0.00012327,2]
[421618878,1777977040000,-27.91996933,0.00012327,2]
[421618875,1777977040000,-229.62833381,0.00012327,2]
[421618874,1777977040000,-270.37166619,0.00012327,2]
[421618876,1777977040000,-500.0,0.00012327,2]
[421618879,1777977040000,-795.84832157,0.00012328,2]
[421618891,1777977040000,-686.3328061,0.00012328,2]
[421618877,1777977040000,-472.08003067,0.00012327,2]
[421618886,1777977040000,-500.0,0.00012328,2]
[421618882,1777977040000,-500.0,0.00012328,2]
[421618894,1777977040000,-500.0,0.00012328,2]
[421618887,1777977040000,-500.0,0.00012328,2]
[421618893,1777977040000,-129.5071939,0.00012328,2]
[421618885,1777977040000,-500.0,0.00012328,2]
[421618895,1777977040000,-567.59643346,0.00012328,2]
[421618884,1777977040000,-500.0,0.00012328,2]
[421618888,1777977040000,-500.0,0.00012328,2]
[421618880,1777977040000,-1208.4,0.00012328,2]
[421618883,1777977040000,-500.0,0.00012328,2]
[421618913,1777977043000,-237.39610413,0.00012328,2]
[421618909,1777977043000,-500.0,0.00012328,2]
[421618912,1777977043000,-262.60389587,0.00012328,2]
[421618907,1777977043000,-500.0,0.00012328,2]
[421618911,1777977043000,-394.94458263,0.00012328,2]
[421618908,1777977043000,-500.0,0.00012328,2]
[421618905,1777977043000,-303.81356654,0.00012328,2]
[421618916,1777977043000,-500.0,0.00012328,2]
[421618906,1777977043000,-500.0,0.00012328,2]
[421618922,1777977043000,-677.26,0.00012328,2]
[421618910,1777977043000,-105.05541737,0.00012328,2]
[421618915,1777977043000,-500.0,0.00012328,2]
[421618914,1777977043000,-500.0,0.00012328,2]
[421618926,1777977043000,-490.36291529,0.00012328,2]
[421618923,1777977043000,-500.0,0.00012328,2]
[421618924,1777977043000,-500.0,0.00012328,2]
[421618925,1777977043000,-500.0,0.00012328,2]
[421618918,1777977043000,-1192.27,0.00012328,2]
[421618919,1777977043000,-500.0,0.00012328,2]
[421618921,1777977043000,-552.35778499,0.00012328,2]
[421618917,1777977043000,-500.0,0.00012328,2]
[421618920,1777977043000,-500.0,0.00012328,2]
[421618933,1777977044000,-1749.68,0.00012328,2]
[421618939,1777977044000,-151.0,0.00012328,2]
[421618937,1777977044000,-500.0,0.00012328,2]
[421618936,1777977044000,-720.63,0.00012328,2]
[421618942,1777977044000,-500.0,0.00012328,2]
[421618935,1777977044000,-500.0,0.00012328,2]
[421618944,1777977044000,-500.0,0.00012328,2]
[421618929,1777977044000,-500.0,0.00012328,2]
[421618945,1777977044000,-500.0,0.00012328,2]
[421618930,1777977044000,-852.94,0.00012328,2]
[421618927,1777977044000,-9.63708471,0.00012328,2]
[421618931,1777977044000,-770.8,0.00012328,2]
[421618932,1777977044000,-424.17397357,0.00012328,2]
[421618928,1777977044000,-500.0,0.00012328,2]
[421618934,1777977044000,-500.0,0.00012328,2]
[421618943,1777977044000,-560.0,0.00012328,2]
[421618940,1777977044000,-500.0,0.00012328,2]
[421618947,1777977044000,-38.18426739,0.00012328,2]
[421618941,1777977044000,-500.0,0.00012328,2]
[421618962,1777977044000,-382.50915814,0.00012328,2]
[421618961,1777977044000,-2471.83,0.00012328,2]
[421618960,1777977044000,-661.14,0.00012328,2]
[421618959,1777977044000,-500.0,0.00012328,2]
[421618956,1777977044000,-500.0,0.00012328,2]
[421618948,1777977044000,-361.81573261,0.00012328,2]
[421618955,1777977044000,-500.0,0.00012328,2]
[421618958,1777977044000,-500.0,0.00012328,2]
[421618946,1777977044000,-461.81573261,0.00012328,2]
[421618957,1777977044000,-590.31,0.00012328,2]
[421618953,1777977044000,-632.12,0.00012328,2]
[421618950,1777977044000,-1332.46,0.00012328,2]
[421618952,1777977044000,-500.0,0.00012328,2]
[421618954,1777977044000,-500.0,0.00012328,2]
[421618951,1777977044000,-500.0,0.00012328,2]
[421618949,1777977044000,-171.68426739,0.00012328,2]
[421619050,1777977046000,-500.0,0.00012328,2]
[421619061,1777977046000,-311.80273523,0.00012328,2]
[421619060,1777977046000,-500.0,0.00012328,2]
[421619046,1777977046000,-1332.99,0.00012328,2]
[421619038,1777977046000,-117.49084186,0.00012328,2]
[421619040,1777977046000,-813.08,0.00012328,2]
[421619044,1777977046000,-500.0,0.00012328,2]
[421619063,1777977046000,-652.34,0.00012328,2]
[421619048,1777977046000,-500.0,0.00012328,2]
[421619065,1777977046000,-500.0,0.00012328,2]
[421619042,1777977046000,-500.0,0.00012328,2]
[421619052,1777977046000,-500.0,0.00012328,2]
[421619067,1777977046000,-719.94,0.00012328,2]
[421619075,1777977046000,-715.59,0.00012328,2]
[421619072,1777977046000,-509.59,0.00012328,2]
[421619069,1777977046000,-1732.49,0.00012328,2]
[421619071,1777977046000,-500.0,0.00012328,2]
[421619077,1777977046000,-595.41,0.00012328,2]
[421619056,1777977046000,-500.0,0.00012328,2]
[421619054,1777977046000,-554.84,0.00012328,2]
[421619058,1777977046000,-825.54,0.00012328,2]
[421619074,1777977046000,-1946.19,0.00012328,2]
[421619106,1777977047000,-500.0,0.00012328,2]
[421619125,1777977047000,-595.47,0.00012328,2]
[421619111,1777977047000,-500.0,0.00012328,2]
[421619113,1777977047000,-500.0,0.00012328,2]
[421619114,1777977047000,-249.7,0.00012328,2]
[421619115,1777977047000,-500.0,0.00012328,2]
[421619110,1777977047000,-500.0,0.00012328,2]
[421619112,1777977047000,-506.14,0.00012328,2]
[421619116,1777977047000,-500.0,0.00012328,2]
[421619108,1777977047000,-500.0,0.00012328,2]
[421619107,1777977047000,-966.56,0.00012328,2]
[421619109,1777977047000,-608.38,0.00012328,2]
[421619126,1777977047000,-3518.33,0.00012328,2]
[421619124,1777977047000,-553.76,0.00012328,2]
[421619127,1777977047000,-500.0,0.00012328,2]
[421619128,1777977047000,-2157.0,0.00012328,2]
[421619129,1777977047000,-561.43,0.00012328,2]
[421619121,1777977047000,-2113.89,0.00012328,2]
[421619118,1777977047000,-782.67,0.00012328,2]
[421619122,1777977047000,-788.28,0.00012328,2]
[421619119,1777977047000,-1211.11,0.00012328,2]
[421619120,1777977047000,-500.0,0.00012328,2]
[421619123,1777977047000,-671.91,0.00012328,2]
[421619130,1777977047000,-500.0,0.00012328,2]
[421619132,1777977047000,-500.0,0.00012328,2]
[421619117,1777977047000,-835.81,0.00012328,2]
[421619104,1777977047000,-516.83,0.00012328,2]
[421619078,1777977047000,-546.92,0.00012328,2]
[421619103,1777977047000,-1759.21,0.00012328,2]
[421619087,1777977047000,-616.86,0.00012328,2]
[421619079,1777977047000,-3503.66,0.00012328,2]
[421619086,1777977047000,-500.0,0.00012328,2]
[421619089,1777977047000,-853.75,0.00012328,2]
[421619081,1777977047000,-504.41,0.00012328,2]
[421619080,1777977047000,-545.72,0.00012328,2]
[421619088,1777977047000,-3844.68,0.00012328,2]
[421619082,1777977047000,-1027.9,0.00012328,2]
[421619084,1777977047000,-500.0,0.00012328,2]
[421619083,1777977047000,-500.0,0.00012328,2]
[421619085,1777977047000,-500.0,0.00012328,2]
[421619091,1777977047000,-500.0,0.00012328,2]
[421619102,1777977047000,-510.21,0.00012328,2]
[421619101,1777977047000,-729.45,0.00012328,2]
[421619097,1777977047000,-1027.56,0.00012328,2]
[421619100,1777977047000,-500.0,0.00012328,2]
[421619090,1777977047000,-500.0,0.00012328,2]
[421619133,1777977047000,-500.0,0.00012328,2]
[421619096,1777977047000,-500.0,0.00012328,2]
[421619095,1777977047000,-500.0,0.00012328,2]
[421619092,1777977047000,-292.05722724,0.00012328,2]
[421619093,1777977047000,-1591.2,0.00012328,2]
[421619099,1777977047000,-500.0,0.00012328,2]
[421619098,1777977047000,-500.0,0.00012328,2]
[421619094,1777977047000,-500.0,0.00012328,2]
[421619105,1777977047000,-1582.7,0.00012328,2]
[421619140,1777977047000,-500.64461494,0.00012328,2]
[421619171,1777977047000,-3874.0,0.00012328,2]
[421619139,1777977047000,-500.0,0.00012328,2]
[421619164,1777977047000,-621.36,0.00012328,2]
[421619165,1777977047000,-500.0,0.00012328,2]
[421619168,1777977047000,-366.1636412,0.00012328,2]
[421619170,1777977047000,-500.0,0.00012328,2]
[421619172,1777977047000,-500.0,0.00012328,2]
[421619181,1777977047000,-500.0,0.00012328,2]
[421619169,1777977047000,-500.0,0.00012328,2]
[421619180,1777977047000,-3093.77,0.00012328,2]
[421619174,1777977047000,-500.0,0.00012328,2]
[421619173,1777977047000,-500.0,0.00012328,2]
[421619179,1777977047000,-500.0,0.00012328,2]
[421619163,1777977047000,-500.0,0.00012328,2]
[421619175,1777977047000,-500.0,0.00012328,2]
[421619177,1777977047000,-1209.36,0.00012328,2]
[421619176,1777977047000,-595.95,0.00012328,2]
[421619182,1777977047000,-1862.21,0.00012328,2]
[421619185,1777977047000,-500.0,0.00012328,2]
[421619183,1777977047000,-500.0,0.00012328,2]
[421619184,1777977047000,-2887.38,0.00012328,2]
[421619186,1777977047000,-860.43,0.00012328,2]
[421619187,1777977047000,-1268.00997761,0.00012328,2]
[421619188,1777977047000,-5307.16002239,0.00012328,2]
[421619190,1777977047000,-5464.33948198,0.00012328,2]
[421619189,1777977047000,-10481.99,0.00012328,2]
[421619178,1777977047000,-500.0,0.00012328,2]
[421619167,1777977047000,-133.8363588,0.00012328,2]
[421619166,1777977047000,-2212.0,0.00012328,2]
[421619152,1777977047000,-1239.57,0.00012328,2]
[421619131,1777977047000,-500.0,0.00012328,2]
[421619138,1777977047000,-543.40952576,0.00012328,2]
[421619135,1777977047000,-500.0,0.00012328,2]
[421619141,1777977047000,-500.0,0.00012328,2]
[421619137,1777977047000,-500.0,0.00012328,2]
[421619134,1777977047000,-500.0,0.00012328,2]
[421619136,1777977047000,-500.0,0.00012328,2]
[421619143,1777977047000,-3514.06,0.00012328,2]
[421619144,1777977047000,-691.42,0.00012328,2]
[421619146,1777977047000,-500.0,0.00012328,2]
[421619148,1777977047000,-500.0,0.00012328,2]
[421619145,1777977047000,-500.0,0.00012328,2]
[421619161,1777977047000,-500.0,0.00012328,2]
[421619142,1777977047000,-592.35,0.00012328,2]
[421619151,1777977047000,-500.0,0.00012328,2]
[421619150,1777977047000,-500.0,0.00012328,2]
[421619149,1777977047000,-920.06,0.00012328,2]
[421619147,1777977047000,-556.65,0.00012328,2]
[421619154,1777977047000,-1500.69,0.00012328,2]
[421619155,1777977047000,-500.0,0.00012328,2]
[421619156,1777977047000,-2.30679768,0.00012328,2]
[421619157,1777977047000,-497.69320232,0.00012328,2]
[421619162,1777977047000,-500.0,0.00012328,2]
[421619158,1777977047000,-500.0,0.00012328,2]
[421619160,1777977047000,-734.41,0.00012328,2]
[421619159,1777977047000,-500.0,0.00012328,2]
[421619153,1777977047000,-500.0,0.00012328,2]
[421619191,1777977060000,52097.06892982,7.6e-05,2]
[421619193,1777977553000,167.273053,4.092e-05,2]
[421619194,1777977553000,167.273053,6.138e-05,2]
[421619195,1777977654000,5000.0,8.01e-05,2]
[421619196,1777977818000,5000.0,8.01e-05,2]
[421619197,1777977833000,206.9135733,7.797e-05,2]
[421619198,1777977840000,3591.07817685,8.01e-05,2]
[421619199,1777977862000,5000.0,8.01e-05,2]
[421619200,1777977869000,176.747651,7.965e-05,2]
[421619201,1777977884000,5000.0,8.01e-05,2]
[421619202,1777977906000,5000.0,8.01e-05,2]
[421619203,1777977928000,5000.0,8.01e-05,2]
[421619207,1777977950000,5000.0,8.01e-05,2]
[421619208,1777977973000,5000.0,8.01e-05,2]
[421619209,1777977996000,5000.0,8.01e-05,2]
[421619210,1777978011000,1412.9204844,7.745e-05,2]
[421619211,1777978018000,5000.0,8.01e-05,2]
[421619218,1777978040000,5000.0,8.01e-05,2]
[421619219,1777978048000,2293.54258223,8.01e-05,2]
[421619226,1777978063000,5000.0,8.01e-05,2]
[421619227,1777978085000,5000.0,8.01e-05,2]
[421619228,1777978107000,5000.0,8.01e-05,2]
[421619229,1777978129000,5000.0,8.01e-05,2]
[421619278,1777978151000,5000.0,8.01e-05,2]
[421619286,1777978156000,7553.8524349,7.744e-05,2]
[421619291,1777978173000,5000.0,8.01e-05,2]
[421619292,1777978196000,5000.0,8.01e-05,2]
[421619293,1777978212000,501.6676778,7.727e-05,2]
[421619294,1777978218000,5000.0,8.01e-05,2]
[421619327,1777978232000,-384.768375,8.143e-05,2]
[421619424,1777978238000,-300.0,8.263e-05,2]
[421619427,1777978238000,-300.0,8.263e-05,2]
[421619425,1777978238000,-300.0,8.263e-05,2]
[421619431,1777978238000,-300.0,8.263e-05,2]
[421619437,1777978238000,-300.0,8.263e-05,2]
[421619441,1777978238000,-300.0,8.263e-05,2]
[421619457,1777978238000,-500.0,9.488e-05,2]
[421619444,1777978238000,-1200.0,9.087e-05,2]
[421619459,1777978238000,-500.0,9.488e-05,2]
[421619461,1777978238000,-500.0,9.488e-05,2]
[421619462,1777978238000,-500.0,9.488e-05,2]
[421619429,1777978238000,-300.0,8.263e-05,2]
[421619442,1777978238000,-300.0,8.263e-05,2]
[421619439,1777978238000,-300.0,8.263e-05,2]
[421619407,1777978238000,-4017.270308,8.253e-05,2]
[421619422,1777978238000,-300.0,8.263e-05,2]
[421619433,1777978238000,-300.0,8.263e-05,2]
[421619420,1777978238000,-300.0,8.263e-05,2]
[421619418,1777978238000,-300.0,8.263e-05,2]
[421619405,1777978238000,-167.273053,8.184e-05,2]
[421619401,1777978238000,-534.0,8.143e-05,2]
[421619403,1777978238000,-0.10099345,8.143e-05,2]
[421619416,1777978238000,-300.0,8.263e-05,2]
[421619414,1777978238000,-300.0,8.262e-05,2]
[421619412,1777978238000,-300.0,8.262e-05,2]
[421619411,1777978238000,-300.0,8.262e-05,2]
[421619409,1777978238000,-1200.0,8.261e-05,2]
[421619464,1777978238000,-500.0,9.488e-05,2]
[421619435,1777978238000,-300.0,8.263e-05,2]
[421619448,1777978238000,-300.0,9.088e-05,2]
[421619484,1777978238000,-497.38494272,9.488e-05,2]
[421619469,1777978238000,-500.0,9.488e-05,2]
[421619466,1777978238000,-500.0,9.488e-05,2]
[421619508,1777978238000,-500.0,9.488e-05,2]
[421619512,1777978238000,-500.0,9.488e-05,2]
[421619506,1777978238000,-500.0,9.488e-05,2]
[421619510,1777978238000,-500.0,9.488e-05,2]
[421619495,1777978238000,-500.0,9.488e-05,2]
[421619504,1777978238000,-500.0,9.488e-05,2]
[421619514,1777978238000,-500.0,9.488e-05,2]
[421619502,1777978238000,-500.0,9.488e-05,2]
[421619500,1777978238000,-500.0,9.488e-05,2]
[421619497,1777978238000,-500.0,9.488e-05,2]
[421619491,1777978238000,-336.64873559,9.488e-05,2]
[421619493,1777978238000,-500.0,9.488e-05,2]
[421619489,1777978238000,-500.0,9.488e-05,2]
[421619499,1777978238000,-500.0,9.488e-05,2]
[421619488,1777978238000,-335.57942625,9.488e-05,2]
[421619480,1777978238000,-500.0,9.488e-05,2]
[421619446,1777978238000,-300.0,9.088e-05,2]
[421619454,1777978238000,-500.0,9.488e-05,2]
[421619450,1777978238000,-3019.62384076,9.425e-05,2]
[421619482,1777978238000,-500.0,9.488e-05,2]
[421619455,1777978238000,-500.0,9.488e-05,2]
[421619471,1777978238000,-500.0,9.488e-05,2]
[421619473,1777978238000,-500.0,9.488e-05,2]
[421619451,1777978238000,-326.26416366,9.488e-05,2]
[421619474,1777978238000,-500.0,9.488e-05,2]
[421619486,1777978238000,-500.0,9.488e-05,2]
[421619476,1777978238000,-500.0,9.488e-05,2]
[421619478,1777978238000,-500.0,9.488e-05,2]
[421619566,1777978239000,-537.6845,0.00011711,2]
[421619568,1777978239000,-161.56332863,0.00011756,2]
[421619585,1777978239000,-153.374,0.00012124,2]
[421619572,1777978239000,-160.0,0.00011756,2]
[421619581,1777978239000,-172.109,0.00012,2]
[421619570,1777978239000,-160.0,0.00011756,2]
[421619564,1777978239000,-445.202766,0.00011711,2]
[421619562,1777978239000,-270.64297941,0.00011711,2]
[421619583,1777978239000,-2214.0,0.00012124,2]
[421619589,1777978239000,-557.5788265,0.00012259,2]
[421619577,1777978239000,-151.0,0.000118,2]
[421619587,1777978239000,-523.4223411,0.00012143,2]
[421619591,1777978239000,-534.0,0.000123,2]
[421619622,1777978239000,-500.0,0.00012328,2]
[421619593,1777978239000,-500.0,0.00012327,2]
[421619597,1777978239000,-500.0,0.00012327,2]
[421619599,1777978239000,-500.0,0.00012327,2]
[421619611,1777978239000,-411.7125341,0.00012327,2]
[421619603,1777978239000,-594.03296437,0.00012327,2]
[421619609,1777978239000,-500.0,0.00012327,2]
[421619605,1777978239000,-500.0,0.00012327,2]
[421619601,1777978239000,-500.0,0.00012327,2]
[421619607,1777978239000,-500.0,0.00012327,2]
[421619613,1777978239000,-500.0,0.00012327,2]
[421619624,1777978239000,-565.71,0.00012328,2]
[421619620,1777978239000,-500.0,0.00012328,2]
[421619579,1777978239000,-151.0,0.000118,2]
[421619618,1777978239000,-511.28,0.00012328,2]
[421619595,1777978239000,-300.65384015,0.00012327,2]
[421619576,1777978239000,-151.0,0.000118,2]
[421619548,1777978239000,-163.97579235,0.00011478,2]
[421619560,1777978239000,-864.0,0.00011709,2]
[421619616,1777978239000,-530.56554771,0.00012328,2]
[421619516,1777978239000,-500.0,9.488e-05,2]
[421619518,1777978239000,-500.0,9.488e-05,2]
[421619519,1777978239000,-500.0,9.488e-05,2]
[421619524,1777978239000,-500.0,9.488e-05,2]
[421619520,1777978239000,-500.0,9.488e-05,2]
[421619525,1777978239000,-500.0,9.488e-05,2]
[421619522,1777978239000,-500.0,9.488e-05,2]
[421619523,1777978239000,-500.0,9.488e-05,2]
[421619526,1777978239000,-500.0,9.488e-05,2]
[421619528,1777978239000,-500.0,9.488e-05,2]
[421619532,1777978239000,-500.0,9.488e-05,2]
[421619530,1777978239000,-500.0,9.488e-05,2]
[421619574,1777978239000,-160.0,0.00011756,2]
[421619529,1777978239000,-500.0,9.488e-05,2]
[421619521,1777978239000,-623.76702426,9.488e-05,2]
[421619527,1777978239000,-500.0,9.488e-05,2]
[421619546,1777978239000,-151.5,0.00011478,2]
[421619538,1777978239000,-600.0,9.677e-05,2]
[421619536,1777978239000,-67110.8842397,9.489e-05,2]
[421619552,1777978239000,-175.84520915,0.000117,2]
[421619554,1777978239000,-218.12954563,0.000117,2]
[421619550,1777978239000,-2294.48390791,0.00011663,2]
[421619556,1777978239000,-227.29184343,0.000117,2]
[421619540,1777978239000,-2673.76082129,0.0001,2]
[421619558,1777978239000,-232.76319165,0.000117,2]
[421619542,1777978239000,-454.14585477,0.00010143,2]
[421619544,1777978239000,-720.0,0.00010645,2]
[421619534,1777978239000,-300.0,9.488e-05,2]
[421619615,1777978239000,-500.0,0.00012327,2]
[421619726,1777978239000,-567.67,0.00012328,2]
[421619640,1777978239000,-500.0,0.00012328,2]
[421619699,1777978239000,-851.04,0.00012328,2]
[421619697,1777978239000,-500.0,0.00012328,2]
[421619705,1777978239000,-500.0,0.00012328,2]
[421619712,1777978239000,-500.0,0.00012328,2]
[421619710,1777978239000,-570.66,0.00012328,2]
[421619707,1777978239000,-530.68,0.00012328,2]
[421619708,1777978239000,-500.0,0.00012328,2]
[421619724,1777978239000,-527.74,0.00012328,2]
[421619715,1777978239000,-500.0,0.00012328,2]
[421619725,1777978239000,-500.0,0.00012328,2]
[421619716,1777978239000,-755.44,0.00012328,2]
[421619722,1777978239000,-881.73,0.00012328,2]
[421619727,1777978239000,-523.92463206,0.00012328,2]
[421619701,1777978239000,-500.0,0.00012328,2]
[421619717,1777978239000,-500.0,0.00012328,2]
[421619713,1777978239000,-500.0,0.00012328,2]
[421619723,1777978239000,-500.0,0.00012328,2]
[421619720,1777978239000,-500.0,0.00012328,2]
[421619721,1777978239000,-500.0,0.00012328,2]
[421619728,1777978239000,-500.0,0.00012328,2]
[421619731,1777978239000,-662.62,0.00012328,2]
[421619730,1777978239000,-500.0,0.00012328,2]
[421619729,1777978239000,-260.77067466,0.00012328,2]
[421619735,1777978239000,-500.0,0.00012328,2]
[421619733,1777978239000,-500.0,0.00012328,2]
[421619734,1777978239000,-633.6,0.00012328,2]
[421619732,1777978239000,-500.0,0.00012328,2]
[421619632,1777978239000,-605.78,0.00012328,2]
[421619719,1777978239000,-2067.12,0.00012328,2]